fUSD/lending_fUSD_20251227
["ID","MTS","AMOUNT","RATE_DAILY","PERIOD"]
[399909475,1766855438222,-500.0,0.00015902,2]
[399909476,1766855438232,-500.0,0.00015902,2]
[399909477,1766855438242,-500.0,0.00015902,2]
[399909478,1766855438252,-636.68993464,0.00015902,2]
[399909479,1766855438262,-500.0,0.00015903,2]
[399909480,1766855438271,-158.78902327,0.00015903,2]
[399909481,1766855438285,-341.21097673,0.00015903,2]
[399909482,1766855438299,-500.0,0.00015903,2]
[399909483,1766855438309,-500.0,0.00015903,2]
[399909484,1766855438319,-500.0,0.00015903,2]
[399909485,1766855438588,-500.0,0.00015903,2]
[399909486,1766855438598,-500.0,0.00015903,2]
[399909487,1766855438611,-1000.0,0.00015903,2]
[399909488,1766855438623,-106.4816014,0.00015903,2]
[399909489,1766855438642,-143.5183986,0.00015903,2]
[399909490,1766855438652,-1000.0,0.00015903,2]
[399909491,1766855438663,-30.548311,0.00015903,2]
[399909492,1766855438674,-219.451689,0.00015903,2]
[399909493,1766855438685,-1000.0,0.00015903,2]
[399909494,1766855438695,-250.0,0.00015903,2]
[399909495,1766855438705,-1000.0,0.00015903,2]
[399909496,1766855438716,-557.73566871,0.00015903,2]
[399909497,1766855438728,-442.26433129,0.00015903,2]
[399909498,1766855438737,-873.42190476,0.00015903,2]
[399909499,1766855438750,-126.57809524,0.00015903,2]
[399909500,1766855438760,-362.65579671,0.00015903,2]
[399909501,1766855438772,-637.34420329,0.00015903,2]
[399909502,1766855438782,-1000.0,0.00015903,2]
[399909503,1766855438792,-500.0,0.00015903,2]
[399909504,1766855438802,-500.0,0.00015903,2]
[399909505,1766855438812,-250.0,0.00015903,2]
[399909506,1766855438822,-500.0,0.00015903,2]
[399909507,1766855438831,-250.0,0.00015903,2]
[399909508,1766855438842,-500.0,0.00015903,2]
[399909509,1766855438852,-500.0,0.00015903,2]
[399909510,1766855438863,-500.0,0.00015903,2]
[399909511,1766855438872,-500.0,0.00015903,2]
[399909512,1766855438882,-500.0,0.00015903,2]
[399909513,1766855438893,-500.0,0.00015903,2]
[399909514,1766855438903,-150.0,0.00015935,2]
[399909515,1766855438914,-150.0,0.00016016,2]
[399909516,1766855438924,-150.0,0.00016097,2]
[399909517,1766855438935,-150.0,0.00016177,2]
[399909518,1766855438946,-150.0,0.00016258,2]
[399909519,1766855438956,-150.0,0.00016339,2]
[399909520,1766855438965,-150.0,0.0001642,2]
[399909521,1766855438985,-203.93761826,0.00016441,2]
[399909522,1766855439003,-1228.441,0.00016476,2]
[399909523,1766855439013,-150.0,0.00016501,2]
[399909524,1766855439025,-150.0,0.00016582,2]
[399909525,1766855439037,-3880.59,0.00016593,2]
[399909526,1766855439048,-11608.18722879,0.00016632,2]
[399909527,1766855439067,-311.94277121,0.00016632,2]
[399909528,1766855439078,-198.448677,0.0001666,2]
[399909529,1766855439089,-150.0,0.00016663,2]
[399909530,1766855439100,-936.02,0.00016692,2]
[399909531,1766855439111,-5148.0067256,0.000167,2]
[399909532,1766855439121,-150.0,0.00016726,2]
[399909533,1766855439132,-150.0,0.00016726,2]
[399909534,1766855439142,-150.0,0.00016744,2]
[399909535,1766855439153,-150.0,0.00016825,2]
[399909536,1766855439163,-155.4359228,0.000169,2]
[399909537,1766855439174,-746.67422641,0.000169,2]
[399909538,1766855439184,-4251.36433155,0.000169,2]
[399909539,1766855439195,-157.28739988,0.000169,2]
[399909540,1766855439205,-150.0,0.00016905,2]
[399909541,1766855439216,-153.5126835,0.00016986,2]
[399909542,1766855439226,-300.0,0.00016999,2]
[399909543,1766855439237,-307.44625433,0.00016999,2]
[399909575,1766855443634,-480.57524839,0.00016999,2]
[399909576,1766855443647,-216.23559728,0.00016999,2]
[399909577,1766855443657,-432.70292269,0.00017,2]
[399909578,1766855444254,-880.0,0.00017,2]
[399909579,1766855444360,-457.10686771,0.00017,2]
[399909594,1766855445778,-197.1902096,0.00017,2]
[399909596,1766855445788,-4695.04401513,0.00017,2]
[399909603,1766855445936,-934.40077117,0.00017,2]
[399909604,1766855445989,-794.30477733,0.00017,2]
[399909605,1766855446002,-453.0,0.00017,2]
[399909809,1766856495418,5010.0,0.000142,5]
[399909825,1766856631805,-1500.0,0.00014,2]
[399909826,1766856631815,-195.0,0.00014177,2]
[399909827,1766856631825,-354.35076502,0.00014177,2]
[399909828,1766856631835,-600.0,0.00014177,2]
[399909829,1766856631845,-195.0,0.00014354,2]
[399909830,1766856631855,-300.0,0.00014354,2]
[399909831,1766856631868,-150.0,0.00014685,2]
[399909832,1766856631877,-1350.96675968,0.00014686,2]
[399909833,1766856631889,-445.61003941,0.00014686,2]
[399909834,1766856631900,-159327.14760091,0.00014686,2]
[399909835,1766856631910,-151.0,0.00014777,2]
[399909836,1766856631919,-151.0,0.00014777,2]
[399909837,1766856631930,-166.66,0.00015337,2]
[399909838,1766856631939,-195.0,0.000154,2]
[399909839,1766856631949,-300.0,0.000154,2]
[399909840,1766856631958,-250.0,0.000154,2]
[399909841,1766856631969,-195.0,0.000154,2]
[399909842,1766856631980,-300.0,0.000154,2]
[399909843,1766856631990,-195.0,0.000154,2]
[399909844,1766856632001,-300.0,0.000154,2]
[399909845,1766856632011,-600.0,0.000154,2]
[399909846,1766856632020,-166.66,0.0001566,2]
[399909847,1766856632030,-1852.42,0.00015738,2]
[399909848,1766856632042,-255.0,0.00015816,2]
[399909849,1766856632054,-166.66,0.00015983,2]
[399909850,1766856632067,-151.0,0.00015988,2]
[399909851,1766856632078,-151.0,0.00015993,2]
[399909852,1766856632091,-151.0,0.00015996,2]
[399909853,1766856632100,-500.0,0.00016148,2]
[399909854,1766856632111,-464.66733468,0.00016148,2]
[399909855,1766856632123,-322.6107,0.00016149,2]
[399909856,1766856632133,-151.0,0.00016149,2]
[399909857,1766856632144,-1000.0,0.00016149,2]
[399909858,1766856632153,-1000.0,0.00016149,2]
[399909859,1766856632163,-1000.0,0.00016149,2]
[399909862,1766856632173,-5.17202788,0.00016149,2]
[399909866,1766856632190,-994.82797212,0.00016149,2]
[399909869,1766856632200,-1000.0,0.00016149,2]
[399909872,1766856632209,-1000.0,0.00016149,2]
[399909875,1766856632219,-1000.0,0.00016149,2]
[399909877,1766856632229,-1000.0,0.00016149,2]
[399909879,1766856632239,-1000.0,0.00016149,2]
[399909881,1766856632249,-558.97202788,0.00016149,2]
[399909884,1766856632264,-61.02797212,0.00016149,2]
[399909886,1766856632275,-250.0,0.00016149,2]
[399909888,1766856632285,-500.0,0.00016149,2]
[399909890,1766856632295,-250.0,0.00016149,2]
[399909892,1766856632305,-500.0,0.00016149,2]
[399909894,1766856632315,-250.0,0.00016149,2]
[399909896,1766856632324,-500.0,0.00016149,2]
[399909898,1766856632334,-500.0,0.00016149,2]
[399909900,1766856632344,-84.08974238,0.00016149,2]
[399909902,1766856632360,-915.91025762,0.00016149,2]
[399909904,1766856632370,-500.0,0.00016149,2]
[399909906,1766856632380,-1000.0,0.00016149,2]
[399909908,1766856632389,-500.0,0.00016149,2]
[399909910,1766856632399,-214.16928415,0.00016149,2]
[399909912,1766856632410,-277.35679052,0.00016149,2]
[399909915,1766856632420,-250.0,0.00016149,2]
[399909917,1766856632430,-250.0,0.00016149,2]
[399909919,1766856632440,-250.0,0.00016149,2]
[399909920,1766856632450,-250.0,0.00016149,2]
[399909922,1766856632460,-250.0,0.00016149,2]
[399909923,1766856632471,-250.0,0.00016149,2]
[399909924,1766856632481,-969.93988759,0.000162,5]
[399909933,1766856637954,-4030.06179293,0.000162,5]
[399909934,1766856637964,-166.66,0.00016306,2]
[399909935,1766856637973,-2799.8896026,0.00016431,2]
[399909936,1766856637983,-3495.89,0.00016438,2]
[399909937,1766856637992,-150.0,0.00016452,2]
[399909938,1766856638001,-150.0,0.00016452,2]
[399909939,1766856638011,-200.0,0.00016452,2]
[399909940,1766856638021,-200.0,0.00016452,2]
[399909941,1766856638031,-982.752,0.00016477,2]
[399909942,1766856638041,-201.75948857,0.00016479,2]
[399909943,1766856638055,-2799.8896026,0.00016524,2]
[399909944,1766856638064,-2799.8896026,0.00016618,2]
[399909945,1766856638075,-166.66,0.00016629,2]
[399909946,1766856638086,-198.44867701,0.0001666,2]
[399909947,1766856638096,-134.86765531,0.00016666,2]
[399909948,1766856638108,-592.47286909,0.00016666,2]
[399909962,1766856639967,-268.361,0.00016666,2]
[399909963,1766856639980,-363.25709748,0.00016666,2]
[399909964,1766856640244,-351.46849696,0.00016666,2]
[399909965,1766856640291,-673.03544516,0.00016666,2]
[399909966,1766856640302,-2799.8896026,0.00016712,2]
[399909967,1766856640312,-1500.0,0.00016798,2]
[399909968,1766856640322,-2799.8896026,0.00016806,2]
[399909969,1766856640331,-96.29847189,0.000169,2]
[399910002,1766856644456,-59.13745091,0.000169,2]
[399910003,1766856644466,-2799.8896026,0.000169,2]
[399910004,1766856644477,-158.68843318,0.000169,2]
[399910005,1766856644490,-7593.65397465,0.000169,2]
[399910012,1766856645961,-564.931296,0.000169,2]
[399910013,1766856646233,-151.0,0.00016747,2]
[399910014,1766856646245,-491.85783016,0.000169,2]
[399910015,1766856646255,-764.03791653,0.000169,2]
[399910016,1766856646266,-263.03989768,0.000169,2]
[399910017,1766856646276,-166.66,0.00016952,2]
[399910019,1766856646286,-200.77285261,0.00016999,2]
[399910020,1766856646296,-150.19383674,0.00016999,2]
[399910021,1766856646305,-597.01537349,0.00016999,2]
[399910022,1766856646316,-1576.0,0.00017,2]
[399910023,1766856646326,-595671.5975881,0.00017,2]
[399910024,1766856646336,-1350.0,0.00017,4]
[399910025,1766856646346,-225994.5649675,0.00017,2]
[399910026,1766856646356,-4662.04398741,0.00017,2]
[399910027,1766856646366,-214137.02511601,0.00017,2]
[399910028,1766856646376,-157430.03115756,0.00017,2]
[399910030,1766856679766,5525.0,0.000136,5]
[399910031,1766856682622,-236.0922,0.00014686,2]
[399910032,1766856682646,-151.0,0.00016797,2]
[399910033,1766856682668,-151.0,0.00016812,2]
[399910034,1766856682689,-2500.0,0.00016856,2]
[399910035,1766856682710,-157.28739986,0.000169,2]
[399910036,1766856682734,-50140.62040014,0.00017,2]
[399910037,1766856687610,-150.0,0.00016726,2]
[399910038,1766856687635,-150.0,0.00016726,2]
[399910039,1766856687658,-200.0,0.00016753,2]
[399910040,1766856687682,-49500.0,0.00017,2]
[399910041,1766856688109,-50000.0,0.00017,2]
[399910042,1766856688778,-50000.0,0.00017,2]
[399910111,1766857606806,456.43581237,0.00030137,120]
[399910126,1766857831960,-181.96983201,0.00013599,2]
[399910127,1766857831971,-262.0,0.00013599,2]
[399910128,1766857831981,-397.8,0.00013699,2]
[399910129,1766857831990,-58.0953586,0.00013748,2]
[399910130,1766857832008,-241.9046414,0.00013748,2]
[399910131,1766857832018,-2500.0,0.00014021,2]
[399910132,1766857832027,-200.27764837,0.00014021,2]
[399910133,1766857832037,-1119.9558411,0.00014485,2]
[399910134,1766857832047,-151.0,0.00014582,2]
[399910135,1766857832057,-300.0,0.00014584,2]
[399910136,1766857832067,-300.0,0.00014584,2]
[399910137,1766857832076,-1200.0,0.00014584,2]
[399910138,1766857832086,-13992.61148914,0.00014585,2]
[399910141,1766857832336,-405.81277303,0.00014585,2]
[399910142,1766857832470,-0.5485,0.00014585,2]
[399910143,1766857832484,-520.35048668,0.00014585,2]
[399910144,1766857832507,-864.08449454,0.00014585,2]
[399910145,1766857832519,-418.24853192,0.00014585,2]
[399910147,1766857832530,-1932.64807024,0.00014585,2]
[399910149,1766857832541,-55590.00090968,0.00014585,2]
[399910151,1766857832552,-255.0437,0.00014585,2]
[399910153,1766857832564,-212285.30321161,0.00014585,2]
[399910155,1766857832576,-2288.34584987,0.00014585,2]
[399910158,1766857832587,-82845.34510629,0.00014585,2]
[399910160,1766857832599,-220461.98338617,0.00014585,2]
[399910162,1766857832612,-1254.41808677,0.00014585,2]
[399910164,1766857832627,-3317.75206066,0.00014585,2]
[399910166,1766857832638,-641.28142672,0.00014585,2]
[399910169,1766857832650,-522.04790989,0.00014585,2]
[399910171,1766857832663,-1195.98280455,0.00014585,2]
[399910173,1766857832675,-12737.60340224,0.00014585,2]
[399910175,1766857832685,-86.40228017,0.00014585,2]
[399910178,1766857832697,-2395.69983203,0.00014585,2]
[399910180,1766857832707,-899.0085955,0.0001463,2]
[399910182,1766857832716,-1200.0,0.00014674,2]
[399910184,1766857832726,-150.0,0.00014684,2]
[399910186,1766857832736,-198.47,0.00014685,2]
[399910188,1766857832746,-500.0,0.00014685,2]
[399910190,1766857832755,-500.0,0.00014685,2]
[399910192,1766857832765,-500.0,0.00014685,2]
[399910194,1766857832775,-360.12209299,0.00014685,2]
[399910196,1766857832785,-500.0,0.00014685,2]
[399910198,1766857832794,-7.69947948,0.00014685,2]
[399910200,1766857832806,-492.30052052,0.00014685,2]
[399910202,1766857832816,-500.0,0.00014685,2]
[399910204,1766857832825,-500.0,0.00014685,2]
[399910206,1766857832834,-400.0,0.00014685,2]
[399910208,1766857832843,-500.0,0.00014685,2]
[399910210,1766857832853,-500.0,0.00014685,2]
[399910212,1766857832863,-500.0,0.00014685,2]
[399910213,1766857832873,-500.0,0.00014685,2]
[399910215,1766857832883,-500.0,0.00014685,2]
[399910217,1766857832892,-500.0,0.00014685,2]
[399910219,1766857832902,-500.0,0.00014685,2]
[399910221,1766857832912,-500.0,0.00014685,2]
[399910223,1766857832921,-500.0,0.00014685,2]
[399910225,1766857832931,-500.0,0.00014685,2]
[399910227,1766857832941,-500.0,0.00014685,2]
[399910229,1766857832951,-500.0,0.00014685,2]
[399910231,1766857832961,-500.0,0.00014685,2]
[399910233,1766857832971,-500.0,0.00014685,2]
[399910235,1766857832981,-315.6427923,0.00014685,2]
[399910237,1766857832991,-634.03595405,0.00014685,2]
[399910239,1766857833001,-2068.87,0.0001473,2]
[399910241,1766857833011,-1119.95584104,0.00014753,2]
[399910243,1766857833020,-300.0,0.00014959,2]
[399910245,1766857833030,-195.0,0.00014959,2]
[399910247,1766857833039,-2500.0,0.00014959,2]
[399910249,1766857833048,-198.47,0.00014959,2]
[399910251,1766857833058,-1119.95584104,0.00015022,2]
[399910253,1766857833069,-195.0,0.00015068,2]
[399910255,1766857833078,-198.49,0.00015233,2]
[399910257,1766857833087,-150.00000001,0.00015288,2]
[399910259,1766857833097,-150.00000001,0.00015288,2]
[399910261,1766857833107,-150.0,0.00015288,2]
[399910263,1766857833117,-150.0,0.00015288,2]
[399910265,1766857833126,-150.0,0.00015288,2]
[399910267,1766857833136,-1119.95584104,0.0001529,2]
[399910269,1766857833146,-1119.95584104,0.00015558,2]
[399910271,1766857833155,-151.0,0.00015751,2]
[399910273,1766857833164,-151.0,0.00015751,2]
[399910275,1766857833174,-151.0,0.00015757,2]
[399910277,1766857833184,-1119.95584104,0.00015827,2]
[399910279,1766857833194,-200.0,0.00015986,2]
[399910281,1766857833203,-166.66,0.00016034,2]
[399910283,1766857833214,-1119.95584104,0.00016095,2]
[399910285,1766857833223,-3460.0,0.00016107,2]
[399910287,1766857833233,-4809.0,0.00016107,2]
[399910289,1766857833242,-564.0,0.00016107,2]
[399910291,1766857833251,-1000.0,0.00016149,2]
[399910293,1766857833262,-1000.0,0.00016149,2]
[399910295,1766857833272,-1119.95584104,0.00016363,2]
[399910297,1766857833282,-150.0,0.00016479,2]
[399910299,1766857833291,-150.0,0.00016479,2]
[399910301,1766857833301,-150.0,0.00016506,2]
[399910303,1766857833310,-150.0,0.00016506,2]
[399910305,1766857833320,-786.202,0.00016587,2]
[399910307,1766857833329,-1119.95584104,0.00016632,2]
[399910309,1766857833338,-151.61798799,0.000169,2]
[399910311,1766857833348,-163.52770627,0.000169,2]
[399910313,1766857833357,-1868.3192181,0.000169,2]
[399910315,1766857833370,-1836.04075706,0.000169,2]
[399910317,1766857833381,-596.76718166,0.000169,2]
[399910319,1766857833391,-157.28739986,0.000169,2]
[399910321,1766857833400,-1119.95584104,0.000169,2]
[399910323,1766857833410,-189.36948743,0.00016921,2]
[399910325,1766857833420,-500.0,0.00016921,2]
[399910327,1766857833430,-349.48113489,0.00016921,2]
[399910329,1766857833440,-249.32797818,0.00016921,2]
[399910331,1766857833449,-299.99,0.00016922,4]
[399910332,1766857833459,-150.99,0.00016922,2]
[399910335,1766857833468,-9999.99,0.00016922,2]
[399910336,1766857833477,-1334.86826823,0.00016922,2]
[399910487,1766857838055,-2890.27613519,0.00016107,2]
[399910488,1766857838106,-1301.00682122,0.00016107,2]
[399910489,1766857838160,-427.56333275,0.00016107,2]
[399910490,1766857838172,-465.16280073,0.00016107,2]
[399910491,1766857838216,-440.45466359,0.00016107,2]
[399910492,1766857838269,-624.76481377,0.00016107,2]
[399910493,1766857838281,-387.77143275,0.00016107,2]
[399910494,1766857838291,-8665.12173177,0.00016922,2]
[399910495,1766857838301,-999.99,0.00016922,2]
[399910496,1766857838311,-5589.58,0.00016922,2]
[399910497,1766857838320,-3680.43,0.00016922,2]
[399910498,1766857838329,-150.99,0.00016922,2]
[399910499,1766857838340,-6703.34,0.00016922,2]
[399910500,1766857838349,-3808.7,0.00016922,2]
[399910501,1766857838359,-885.6,0.00016922,2]
[399910502,1766857838369,-151.0,0.00016997,2]
[399910503,1766857838378,-500.0,0.00016999,2]
[399910504,1766857838387,-1255.0,0.00017,2]
[399910505,1766857838397,-109248.67149887,0.00017,2]
[399910514,1766857840327,-2500.94388863,0.00017,2]
[399910517,1766857840339,-309.80830395,0.00017,2]
[399910519,1766857840352,-2025.50471159,0.00017,2]
[399910521,1766857840365,-356.31619962,0.00017,2]
[399910526,1766857840433,-32460.18634,0.00017,2]
[399910527,1766857840445,-1866.07550372,0.00017,2]
[399910528,1766857840543,-872.14,0.00017,2]
[399910529,1766857840703,-278.673149,0.00017,2]
[399910530,1766857840716,-7301.2,0.00017,2]
[399910531,1766857840916,-64609.79429862,0.00017,2]
[399910532,1766857840931,-839.15,0.00017,2]
[399910533,1766857840944,-8573.6667585,0.00017,2]
[399910547,1766857844282,-827.54659716,0.00017,2]
[399910548,1766857844296,-1130.776072,0.00017,2]
[399910549,1766857844309,-324.598953,0.00017,2]
[399910550,1766857844322,-809.74516329,0.00017,2]
[399910551,1766857844344,-9063.14310798,0.00017,2]
[399910552,1766857844356,-438.0,0.00017,2]
[399910553,1766857844390,-6896.23445908,0.00017,2]
[399910554,1766857844403,-379.46485639,0.00017,2]
[399910555,1766857844416,-550.50950003,0.00017,2]
[399910556,1766857845128,-636.99424553,0.00017,2]
[399910557,1766857845139,-183.2976451,0.00017,2]
[399910558,1766857845148,-21330.95025331,0.00017,2]
[399910559,1766857845160,-257.93483998,0.00017,2]
[399910562,1766857845214,-1597.86318488,0.00017,2]
[399910592,1766857846081,-1118.4173,0.00017,2]
[399910593,1766857846094,-12030.29575739,0.00017,2]
[399910594,1766857846136,-1073.91176786,0.00017,2]
[399910595,1766857846244,-11947.57819722,0.00017,2]
[399910596,1766857846298,-68854.39114272,0.00017,2]
[399910597,1766857846310,-10071.38760807,0.00017,2]
[399910598,1766857846357,-312.5,0.00017,2]
[399910725,1766858339942,561.61,0.000266,120]
[399911230,1766859038269,-250.0,0.00016107,2]
[399911231,1766859038280,-250.0,0.00016107,2]
[399911232,1766859038290,-58.38385669,0.00016107,2]
[399911233,1766859038319,-153.19714331,0.00016107,2]
[399911234,1766859038328,-227.273,0.00016107,2]
[399911235,1766859038338,-21.14607169,0.00016107,2]
[399911236,1766859038350,-145.85392831,0.00016107,2]
[399911237,1766859038360,-349.4587389,0.00016107,2]
[399911238,1766859038377,-1409.95247366,0.00016107,2]
[399911239,1766859038389,-432.46183533,0.00016107,2]
[399911252,1766859040325,-1268.12695211,0.00016107,2]
[399911255,1766859040334,-2430.0,0.00016107,2]
[399911258,1766859040344,-6537.0,0.00016107,2]
[399911260,1766859040355,-4809.0,0.00016107,2]
[399911262,1766859040366,-3587.09,0.00016438,2]
[399911264,1766859040376,-151.0,0.00016583,2]
[399911266,1766859040386,-151.0,0.00016587,2]
[399911269,1766859040395,-151.0,0.00016589,2]
[399911271,1766859040405,-628.962,0.00016629,2]
[399911273,1766859040415,-824.26512541,0.000168,2]
[399911275,1766859040428,-500.0,0.00016849,2]
[399911277,1766859040438,-287.07880305,0.00016899,2]
[399911279,1766859040448,-497.40187363,0.00016899,2]
[399911281,1766859040457,-274.93303055,0.00016899,2]
[399911283,1766859040467,-230.22359054,0.00016899,2]
[399911286,1766859040478,-500.0,0.00016899,2]
[399911287,1766859040489,-500.0,0.00016899,2]
[399911288,1766859040499,-500.0,0.00016899,2]
[399911289,1766859040508,-500.0,0.00016899,2]
[399911290,1766859040518,-500.0,0.00016899,2]
[399911291,1766859040527,-500.0,0.00016899,2]
[399911292,1766859040537,-393.78302225,0.00016899,2]
[399911293,1766859040547,-419887.7963,0.000169,2]
[399911294,1766859040557,-151.61798797,0.000169,2]
[399911295,1766859040567,-175.35993178,0.000169,2]
[399911296,1766859040576,-2867.41810454,0.000169,2]
[399911297,1766859040586,-299.99,0.00016922,4]
[399911298,1766859040596,-594.63679442,0.00016999,2]
[399911299,1766859040605,-174.52958472,0.00016999,2]
[399911300,1766859040615,-9999.99,0.00017,2]
[399911301,1766859040625,-1008.0,0.00017,2]
[399911302,1766859040636,-45614.25836361,0.00017,2]
[399911303,1766859040651,-27659.82776326,0.00017,2]
[399911304,1766859040663,-131916.76732998,0.00017,2]
[399911305,1766859040675,-959.79,0.00017,2]
[399911306,1766859040694,-564.0,0.00016107,2]
[399911307,1766859040704,-2103.75743284,0.00017,2]
[399911308,1766859040716,-1790.09687237,0.00017,2]
[399911342,1766859043716,-415.95956911,0.00016007,2]
[399911343,1766859043726,-1541.8228047,0.00017,2]
[399911344,1766859043738,-997.91842106,0.00017,2]
[399911346,1766859043771,-298.50596504,0.00017,2]
[399911348,1766859043782,-21025.12780652,0.00017,2]
[399911351,1766859043827,-307.97656556,0.00017,2]
[399911352,1766859043839,-1397.18855336,0.00017,2]
[399911353,1766859043850,-274.543,0.00017,2]
[399911354,1766859043873,-3318.44912896,0.00017,2]
[399911355,1766859043887,-2535.24336363,0.00017,2]
[399911356,1766859043898,-800.197906,0.00017,2]
[399911357,1766859043910,-371.36820323,0.00017,2]
[399911358,1766859043921,-437.72700421,0.00017,2]
[399911379,1766859046344,-151.0,0.00016584,2]
[399911380,1766859046355,-207.8,0.00017,2]
[399911381,1766859046371,-791.21895325,0.00017,2]
[399911382,1766859046455,-6437.02902888,0.00017,2]
[399911383,1766859046470,-2950.711,0.00017,2]
[399911461,1766859764909,457.0,0.00030137,120]
[399911474,1766859917371,155.25,8.316e-05,2]
[399911475,1766859917567,155.25,0.00011088,2]
[399911531,1766860231366,-377.91,0.00013699,2]
[399911532,1766860231377,-16.54008645,0.0001386,2]
[399911533,1766860231390,-138.70991355,0.0001386,2]
[399911534,1766860231401,-148.25103904,0.00015562,2]
[399911535,1766860231414,-351.74896096,0.00015562,2]
[399911536,1766860231425,-2519.10982703,0.00016,4]
[399911537,1766860231437,-487.0242411,0.00016,4]
[399911538,1766860231449,-4910.06818058,0.00016,4]
[399911539,1766860231461,-2488.79487899,0.00016,4]
[399911540,1766860231475,-2602.86816267,0.00016,4]
[399911541,1766860231487,-1377.93241419,0.00016,4]
[399911542,1766860231500,-1060.92531021,0.00016,4]
[399911543,1766860231512,-305.85181942,0.00016,4]
[399911544,1766860231528,-665.86849656,0.00016,4]
[399911545,1766860231540,-999.0,0.00016,4]
[399911546,1766860231552,-449.6702639,0.00016,4]
[399911547,1766860231564,-4448.81383102,0.00016,4]
[399911548,1766860231576,-1872.07752206,0.00016,4]
[399911549,1766860231588,-300.0,0.00016,4]
[399911550,1766860231610,-6916.88431535,0.00016,4]
[399911551,1766860231628,-646.95932909,0.00016,4]
[399911552,1766860231640,-803.51,0.00016,4]
[399911553,1766860231652,-371.38386696,0.00016,4]
[399911618,1766860237398,-2832.97410364,0.00016,4]
[399911619,1766860237511,-43349.56675151,0.00016,4]
[399911620,1766860237525,-4809.0,0.0001639,2]
[399911621,1766860237536,-197.55,0.00016417,2]
[399911622,1766860237546,-200.0,0.00016428,2]
[399911623,1766860237556,-151.0,0.00016581,2]
[399911624,1766860237567,-151.0,0.00016584,2]
[399911626,1766860237577,-151.0,0.00016587,2]
[399911628,1766860237588,-151.0,0.00016588,2]
[399911630,1766860237597,-999.0,0.0001659,3]
[399911632,1766860237608,-1000.0,0.0001661,2]
[399911634,1766860237617,-155.25,0.00016632,2]
[399911636,1766860237627,-13097.88530011,0.00016634,2]
[399911638,1766860237639,-166.66,0.00016862,2]
[399911640,1766860237649,-377.08700247,0.00016899,2]
[399911642,1766860237659,-503.169,0.00016899,2]
[399911644,1766860237668,-500.0,0.00016899,2]
[399911646,1766860237678,-500.0,0.00016899,2]
[399911648,1766860237688,-500.0,0.00016899,2]
[399911650,1766860237698,-500.0,0.00016899,2]
[399911652,1766860237710,-500.0,0.00016899,2]
[399911655,1766860237723,-500.0,0.00016899,2]
[399911658,1766860237733,-500.0,0.00016899,2]
[399911661,1766860237743,-500.0,0.00016899,2]
[399911663,1766860237754,-500.0,0.00016899,2]
[399911665,1766860237764,-163.5177008,0.00016899,2]
[399911667,1766860237774,-500.0,0.00016899,2]
[399911669,1766860237784,-500.0,0.00016899,2]
[399911671,1766860237793,-500.0,0.00016899,2]
[399911673,1766860237803,-500.0,0.00016899,2]
[399911675,1766860237813,-500.00000001,0.00016899,2]
[399911677,1766860237823,-498.42920969,0.00016899,2]
[399911679,1766860237833,-500.0,0.00016899,2]
[399911681,1766860237847,-500.0,0.00016899,2]
[399911683,1766860237858,-500.0,0.00016899,2]
[399911685,1766860237867,-500.0,0.00016899,2]
[399911687,1766860237878,-500.0,0.00016899,2]
[399911689,1766860237887,-500.0,0.00016899,2]
[399911691,1766860237897,-500.0,0.00016899,2]